bitfinex/quotes_BTCUSD_20250718
["timestamp","ask_amount","ask_price","bid_price","bid_amount"]
[1752813026781,0.034,120260.0,120250.0,0.5841648]
[1752813026782,0.0177,120260.0,120250.0,0.5841648]
[1752813026963,0.0358,120270.0,120260.0,0.19125144]
[1752813027230,0.0379,120270.0,120260.0,0.6987483]
[1752813027468,0.0379,120270.0,120260.0,0.39642112]
[1752813027695,0.0025,120270.0,120260.0,0.78931858]
[1752813027930,0.0004,120280.0,120270.0,0.19123553]
[1752813028182,0.0004,120280.0,120270.0,0.72646916]
[1752813028397,0.0004,120280.0,120270.0,0.73152916]
[1752813028620,0.00148,120280.0,120270.0,0.60076916]
[1752813028851,0.03338,120280.0,120270.0,0.42626198]
[1752813029066,0.03646,120280.0,120270.0,0.40754581]
[1752813030425,0.03746,120280.0,120270.0,0.40754581]
[1752813033836,0.01898,120280.0,120270.0,0.27674581]
[1752813034045,0.03448,120280.0,120270.0,0.70983299]
[1752813035139,0.03448,120280.0,120270.0,0.40750581]
[1752813035615,0.03756,120280.0,120270.0,0.19123553]
[1752813036059,0.1682,120280.0,120270.0,0.19123553]
[1752813038056,0.49546766,120280.0,120270.0,0.19123553]
[1752813038324,0.49546759,120280.0,120270.0,0.19123553]
[1752813038537,0.48715401,120280.0,120270.0,0.19123553]
[1752813038741,0.49546759,120280.0,120270.0,0.19123553]
[1752813038948,0.49546752,120280.0,120270.0,0.19123553]
[1752813039383,0.48715401,120280.0,120270.0,0.19123553]
[1752813039586,0.47884056,120280.0,120270.0,0.19123553]
[1752813039737,0.1682,120280.0,120270.0,0.19123553]
[1752813039934,0.47784049,120280.0,120270.0,0.19123553]
[1752813040145,0.17551331,120280.0,120270.0,0.19123553]
[1752813040515,0.47984049,120280.0,120270.0,0.19123553]
[1752813040968,0.48815394,120280.0,120270.0,0.19123553]
[1752813041182,0.47984049,120280.0,120270.0,0.19123553]
[1752813041811,0.82815394,120280.0,120270.0,0.19123553]
[1752813042639,0.81984049,120280.0,120270.0,0.19123553]
[1752813043275,0.79965152,120280.0,120270.0,0.17460698]
[1752813043496,0.94761907,120280.0,120270.0,0.19123573]
[1752813043715,0.93005145,120280.0,120270.0,0.17460698]
[1752813044373,0.92169773,120280.0,120270.0,0.18292139]
[1752813044653,0.91334415,120280.0,120270.0,0.1995498]
[1752813044838,0.91334415,120280.0,120270.0,0.20786401]
[1752813044839,0.90503077,120280.0,120270.0,0.20786401]
[1752813045307,0.46407028,120280.0,120270.0,0.20786401]
[1752813045552,0.89671746,120280.0,120270.0,0.20786401]
[1752813048558,0.91334422,120280.0,120270.0,0.20786401]
[1752813048996,0.90503077,120280.0,120270.0,0.20786401]
[1752813049189,0.89671746,120280.0,120270.0,0.20786401]
[1752813049861,0.38101414,120270.0,120260.0,0.18293661]
[1752813050078,0.70496987,120270.0,120260.0,0.17462157]
[1752813050312,0.69665553,120270.0,120260.0,0.18293674]
[1752813050537,0.69665553,120270.0,120260.0,0.19125171]
[1752813050762,0.70496994,120270.0,120260.0,0.19956668]
[1752813050980,0.71328449,120270.0,120260.0,0.18293674]
[1752813051220,0.71328449,120270.0,120260.0,0.19125178]
[1752813051667,0.79879477,120270.0,120260.0,0.19125178]
[1752813052584,0.79048022,120270.0,120260.0,0.19125178]
[1752813052804,0.79979477,120270.0,120260.0,0.19125178]
[1752813053450,0.79979477,120270.0,120260.0,0.19125184]
[1752813053679,0.96608727,120270.0,120260.0,0.17462157]
[1752813053915,0.79979477,120270.0,120260.0,0.18293661]
[1752813054129,0.79148015,120270.0,120260.0,0.18293661]
[1752813054354,0.80411648,120270.0,120260.0,0.16630633]
[1752813054581,0.00831538,120250.0,120240.0,0.17465027]
[1752813054801,0.70118367,120250.0,120240.0,0.19128332]
[1752813055017,0.83417367,120250.0,120240.0,0.20791622]
[1752813055182,0.71248947,120250.0,120240.0,0.20791622]
[1752813055361,0.84244947,120250.0,120240.0,0.19960001]
[1752813055573,0.8507654,120250.0,120240.0,0.19128373]
[1752813055776,1.10359646,120250.0,120240.0,0.16633399]
[1752813055976,1.12149307,120250.0,120240.0,0.18296704]
[1752813056186,1.12149307,120250.0,120240.0,0.17465062]
[1752813056498,1.09728101,120250.0,120240.0,0.19128367]
[1752813056882,0.93096085,120250.0,120240.0,0.19128367]
[1752813057096,1.08896501,120250.0,120240.0,0.18296718]
[1752813057286,1.08896501,120250.0,120240.0,0.16633399]
[1752813057542,0.38833277,120240.0,120230.0,0.1829824]
[1752813057798,0.83930258,120240.0,120230.0,0.19144958]
[1752813058015,0.83397609,120240.0,120230.0,0.19976648]
[1752813058229,0.70397602,120240.0,120230.0,0.19976648]
[1752813058444,0.83397595,120240.0,120230.0,0.19976648]
[1752813058662,1.09413713,120240.0,120230.0,0.18313268]
[1752813058889,1.09409713,120240.0,120230.0,0.18313268]
[1752813059111,0.91944651,120240.0,120230.0,0.2007669]
[1752813059322,0.91113009,120240.0,120230.0,0.2090838]
[1752813059535,0.91944658,120240.0,120230.0,0.2007669]
[1752813059749,0.91944658,120240.0,120230.0,0.20908338]
[1752813059975,0.92776307,120240.0,120230.0,0.20908338]
[1752813060192,0.9360797,120240.0,120230.0,0.20908338]
[1752813060436,0.92776307,120240.0,120230.0,0.20908338]
[1752813060650,0.92776307,120240.0,120230.0,0.20808338]
[1752813060877,0.92876307,120240.0,120230.0,0.20808338]
[1752813061100,1.09709747,120240.0,120230.0,0.17481529]
[1752813061563,1.4685515,120240.0,120230.0,0.00015021]
[1752813061789,1.24451532,120240.0,120230.0,0.00015021]
[1752813062014,1.07202814,120240.0,120230.0,0.00015021]
[1752813062924,1.37435532,120240.0,120230.0,0.00015021]
[1752813063590,1.24451532,120240.0,120230.0,0.00015021]
[1752813063821,6.38885617,120240.0,120230.0,0.00015021]
[1752813064050,5.95672899,120240.0,120230.0,0.16649804]
[1752813064337,6.17224861,120240.0,120230.0,0.16649804]
[1752813064582,6.17224861,120240.0,120230.0,0.00015021]
[1752813064796,6.08648899,120240.0,120230.0,0.00015021]
[1752813065034,6.38881617,120240.0,120230.0,0.00015021]
[1752813067219,6.24451532,120240.0,120230.0,0.16649804]
[1752813067435,6.07190814,120240.0,120230.0,0.16649804]
[1752813068355,6.15766776,120240.0,120230.0,0.00015021]
[1752813068564,6.47453579,120240.0,120230.0,0.00015021]
[1752813068780,6.62445579,120240.0,120230.0,0.00015021]
[1752813070090,6.53769617,120240.0,120230.0,0.00015021]
[1752813070297,6.53869617,120240.0,120230.0,0.00015021]
[1752813070539,6.54169617,120240.0,120230.0,0.00015021]
[1752813074309,6.56725921,120240.0,120230.0,0.00015021]
[1752813078692,1.56725921,120240.0,120230.0,0.00015021]
[1752813078894,6.56725921,120240.0,120230.0,0.00015021]
[1752813079623,6.65301883,120240.0,120230.0,0.00015021]
[1752813081184,6.65279845,120240.0,120230.0,0.00015021]
[1752813081406,6.56703883,120240.0,120230.0,0.00015021]
[1752813087430,6.57477575,120240.0,120230.0,0.00015021]
[1752813088370,6.44513575,120240.0,120230.0,0.00015021]
[1752813088591,6.57413575,120240.0,120230.0,0.00015021]
[1752813088807,6.53089537,120240.0,120230.0,0.00015021]
[1752813089019,6.65989537,120240.0,120230.0,0.00015021]
[1752813089861,5.61682024,120240.0,120230.0,0.00015021]
[1752813090074,0.11707332,120240.0,120230.0,0.22709937]
[1752813090293,0.22047028,120240.0,120230.0,0.22709937]
[1752813090510,0.09151028,120240.0,120230.0,0.22709937]
[1752813090721,0.56047028,120240.0,120230.0,0.22709937]
[1752813090944,0.55747028,120240.0,120230.0,0.22709937]
[1752813091159,0.55647028,120240.0,120230.0,0.22709937]
[1752813091603,0.55747028,120240.0,120230.0,0.22709937]
[1752813091815,0.55743028,120240.0,120230.0,0.22709937]
[1752813092022,0.85975746,120240.0,120230.0,0.22709937]
[1752813092935,0.85775746,120240.0,120230.0,0.22709937]
[1752813093295,0.85875746,120240.0,120230.0,0.22709937]
[1752813094152,0.72983746,120240.0,120230.0,0.22709937]
[1752813094359,0.85867746,120240.0,120230.0,0.22709937]
[1752813094953,0.72983746,120240.0,120230.0,0.22709937]
[1752813095146,0.85859746,120240.0,120230.0,0.22709937]
[1752813095379,0.55627028,120240.0,120230.0,0.22709937]
[1752813105276,0.342,120240.0,120230.0,0.26810882]
[1752813105494,0.002,120240.0,120230.0,0.26810882]
[1752813105689,0.13056,120240.0,120230.0,0.26810882]
[1752813105895,0.13056,120240.0,120230.0,0.22709937]
[1752813106383,0.002,120240.0,120230.0,0.22709937]
[1752813106630,0.13056,120240.0,120230.0,0.22709937]
[1752813109134,0.43288718,120240.0,120230.0,0.22709937]
[1752813109506,0.13056,120240.0,120230.0,0.26810882]
[1752813109706,0.002,120240.0,120230.0,0.26810882]
[1752813109919,0.13056,120240.0,120230.0,0.26810882]
[1752813110398,0.002,120240.0,120230.0,0.22709937]
[1752813110601,0.13056,120240.0,120230.0,0.22709937]
[1752813110770,0.12956,120240.0,120230.0,0.22709937]
[1752813111004,0.001,120240.0,120230.0,0.22709937]
[1752813111216,0.12856,120240.0,120230.0,0.29934154]
[1752813111815,0.12856,120240.0,120230.0,0.22809937]
[1752813112238,0.01663125,120250.0,120240.0,0.19128325]
[1752813112413,0.65895843,120250.0,120240.0,0.21204325]
[1752813112622,0.84402039,120250.0,120240.0,0.19128339]
[1752813112789,1.06557515,120250.0,120240.0,0.17465062]
[1752813113008,1.06862515,120250.0,120240.0,0.18296711]
[1752813113479,0.90230499,120250.0,120240.0,0.19959974]
[1752813113686,0.90330499,120250.0,120240.0,0.19959974]
[1752813113895,0.89498871,120250.0,120240.0,0.19959974]
[1752813114106,0.86782298,120250.0,120240.0,0.19959974]
[1752813114307,0.87613864,120250.0,120240.0,0.19959974]
[1752813114726,0.87613864,120250.0,120240.0,0.20173974]
[1752813114940,0.74857864,120250.0,120240.0,0.20173974]
[1752813115183,0.86050746,120250.0,120240.0,0.21733974]
[1752813115417,0.55607028,120250.0,120240.0,0.23545974]
[1752813115648,0.47056,120250.0,120240.0,0.2746752]
[1752813115853,0.47056,120250.0,120240.0,0.23545974]
[1752813120963,0.342,120250.0,120240.0,0.23545974]
[1752813121224,0.97454039,120250.0,120240.0,0.18510711]
[1752813121453,0.93444949,120250.0,120240.0,0.19128345]
[1752813121740,1.06296949,120250.0,120240.0,0.19128352]
[1752813121972,1.07836949,120250.0,120240.0,0.19128359]
[1752813122187,1.07836949,120250.0,120240.0,0.20791622]
[1752813122401,0.91204899,120250.0,120240.0,0.20791622]
[1752813122620,0.89664899,120250.0,120240.0,0.20791574]
[1752813123508,1.07128508,120250.0,120240.0,0.20791574]
[1752813123727,1.07128508,120250.0,120240.0,0.19959953]
[1752813123949,1.07128508,120250.0,120240.0,0.20791574]
[1752813124236,1.1552946,120250.0,120240.0,0.20791574]
[1752813124462,0.96110809,120250.0,120240.0,0.21005574]
[1752813124694,0.95279243,120250.0,120240.0,0.21307574]
[1752813124915,0.96110795,120250.0,120240.0,0.21307574]
[1752813125137,0.95279243,120250.0,120240.0,0.21307574]
[1752813125360,0.96110809,120250.0,120240.0,0.21307574]
[1752813126182,0.95279243,120250.0,120240.0,0.21307574]
[1752813126433,0.96110809,120250.0,120240.0,0.21307574]
[1752813126844,0.95279236,120250.0,120240.0,0.21307574]
[1752813127285,0.95279236,120250.0,120240.0,0.22837574]
[1752813127529,0.96110788,120250.0,120240.0,0.22837574]
[1752813128163,0.95279236,120250.0,120240.0,0.22837574]
[1752813128382,0.84090361,120250.0,120240.0,0.20791574]
[1752813128609,0.55452952,120250.0,120240.0,0.24457574]
[1752813129700,0.42600952,120250.0,120240.0,0.24457574]
[1752813129922,0.42600952,120250.0,120240.0,0.21307574]
[1752813130151,1.01027419,120250.0,120240.0,0.17465068]
[1752813130359,1.16959419,120250.0,120240.0,0.19128359]
[1752813130571,1.11020263,120250.0,120240.0,0.16633399]
[1752813130778,0.55609974,120240.0,120230.0,0.17481536]
[1752813130989,0.94471457,120240.0,120230.0,0.17481536]
[1752813131196,1.02456147,120240.0,120230.0,0.17481529]
[1752813131426,1.02456147,120240.0,120230.0,0.17481543]
[1752813131641,1.02456147,120240.0,120230.0,0.19144993]
[1752813132277,1.02456147,120240.0,120230.0,0.19145]
[1752813132749,1.02456147,120240.0,120230.0,0.19245]
[1752813132970,1.02456147,120240.0,120230.0,0.19145]
[1752813133198,1.02556147,120240.0,120230.0,0.19145]
[1752813133839,1.15408147,120240.0,120230.0,0.19145]
[1752813134081,1.15508147,120240.0,120230.0,0.17481543]
[1752813134291,1.15508147,120240.0,120230.0,0.18313275]
[1752813134508,1.15508147,120240.0,120230.0,0.19145]
[1752813135644,1.15508147,120240.0,120230.0,0.19976718]
[1752813136088,1.15508147,120240.0,120230.0,0.19145]
[1752813136538,1.15508147,120240.0,120230.0,0.18313275]
[1752813136756,1.14676484,120240.0,120230.0,0.18313275]
[1752813138007,1.14676484,120240.0,120230.0,0.17481543]
[1752813139800,1.00294484,120240.0,120230.0,0.17481543]
[1752813139978,0.68106766,120240.0,120230.0,0.18313261]
[1752813140193,1.11191484,120240.0,120230.0,0.18313261]
[1752813140649,0.81706085,120240.0,120230.0,0.20180662]
[1752813140874,0.96221348,120240.0,120230.0,0.20493662]
[1752813141084,0.97053004,120240.0,120230.0,0.20493662]
[1752813141713,0.67651949,120240.0,120230.0,0.20493662]
[1752813141922,0.97884667,120240.0,120230.0,0.20180662]
[1752813142767,0.6598863,120240.0,120230.0,0.24138802]
[1752813142973,0.97884667,120240.0,120230.0,0.20180662]
[1752813143164,0.85864336,120240.0,120230.0,0.20180662]
[1752813143380,1.15345735,120240.0,120230.0,0.19976662]
[1752813145161,1.14514114,120240.0,120230.0,0.18313261]
[1752813145365,1.13682472,120240.0,120230.0,0.18313275]
[1752813145585,1.13682472,120240.0,120230.0,0.19976718]
[1752813147071,1.00834472,120240.0,120230.0,0.19976718]
[1752813147285,1.13682472,120240.0,120230.0,0.19976718]
[1752813147911,1.12850816,120240.0,120230.0,0.19976718]
[1752813149389,1.12850816,120240.0,120230.0,0.20808422]
[1752813150021,1.12850816,120240.0,120230.0,0.19976718]
[1752813150228,1.12019153,120240.0,120230.0,0.19976718]
[1752813150429,0.96217341,120240.0,120230.0,0.2080838]
[1752813150966,0.97049004,120240.0,120230.0,0.2080838]
[1752813151217,0.97880625,120240.0,120230.0,0.2080838]
[1752813151386,0.67647907,120240.0,120230.0,0.2080838]
[1752813151607,1.01666121,120240.0,120230.0,0.19144979]
[1752813151811,1.14514121,120240.0,120230.0,0.19144979]
[1752813152251,1.14514121,120240.0,120230.0,0.1997669]
[1752813152910,1.13682472,120240.0,120230.0,0.1997669]
[1752813153126,1.12850816,120240.0,120230.0,0.18313261]
[1752813153344,1.14383455,120240.0,120230.0,0.17481543]
[1752813153552,1.13908153,120240.0,120230.0,0.18313275]
[1752813153744,1.13908153,120240.0,120230.0,0.19145]
[1752813153955,1.13908153,120240.0,120230.0,0.18313275]
[1752813154166,0.83369334,120240.0,120230.0,0.19976676]
[1752813154371,0.9704899,120240.0,120230.0,0.19976676]
[1752813154581,0.42711339,120240.0,120230.0,0.23623676]
[1752813154800,0.55559339,120240.0,120230.0,0.23623676]
[1752813155654,0.55359339,120240.0,120230.0,0.23623676]
[1752813155882,0.55359339,120240.0,120230.0,0.23723676]
[1752813157442,0.42511339,120240.0,120230.0,0.23723676]
[1752813157643,0.55355339,120240.0,120230.0,0.23723676]
[1752813158246,0.42511339,120240.0,120230.0,0.23723676]
[1752813158450,0.55355339,120240.0,120230.0,0.23723676]
[1752813164503,0.08511339,120240.0,120230.0,0.61098808]
[1752813164758,0.08511339,120240.0,120230.0,0.69649836]
[1752813165046,1e-08,120240.0,120230.0,0.69649836]
[1752813165276,0.20012,120280.0,120270.0,0.20773553]
[1752813165481,0.32852,120280.0,120270.0,0.20773553]
[1752813165723,0.32852,120280.0,120270.0,0.24812724]
[1752813166361,0.32852,120280.0,120270.0,0.22850553]
[1752813166567,0.33883331,120280.0,120270.0,0.22850553]
[1752813167008,0.34714682,120280.0,120270.0,0.21290553]
[1752813167428,0.34922682,120280.0,120270.0,0.21290553]
[1752813167860,0.15150682,120280.0,120270.0,0.21290553]
[1752813168090,0.33374765,120280.0,120270.0,0.19954974]
[1752813168317,0.47046144,120280.0,120270.0,0.19954974]
[1752813168532,0.46214765,120280.0,120270.0,0.19954974]
[1752813168757,0.47046137,120280.0,120270.0,0.19954974]
[1752813168985,0.453834,120280.0,120270.0,0.19954974]
[1752813169185,0.45383394,120280.0,120270.0,0.19954974]
[1752813169395,0.45383394,120280.0,120270.0,0.20153974]
[1752813169554,0.44552049,120280.0,120270.0,0.20153974]
[1752813169756,0.45383394,120280.0,120270.0,0.20153974]
[1752813169963,0.44552049,120280.0,120270.0,0.20153974]
[1752813170172,0.453834,120280.0,120270.0,0.20153974]
[1752813170372,0.453834,120280.0,120270.0,0.19954974]
[1752813170760,0.325434,120280.0,120270.0,0.19954974]
[1752813171048,0.44552049,120280.0,120270.0,0.19954974]
[1752813171282,0.45383394,120280.0,120270.0,0.19954974]
[1752813171647,0.44552049,120280.0,120270.0,0.19954974]
[1752813171881,0.453834,120280.0,120270.0,0.19954974]
[1752813172784,0.45383394,120280.0,120270.0,0.19954974]
[1752813172999,0.33374745,120280.0,120270.0,0.19954974]
[1752813173220,0.453794,120280.0,120270.0,0.19954974]
[1752813173430,0.45379394,120280.0,120270.0,0.19954974]
[1752813174090,0.47042117,120280.0,120270.0,0.19954974]
[1752813174933,0.66021371,120280.0,120270.0,0.1912356]
[1752813175152,0.66340371,120280.0,120270.0,0.19954974]
[1752813175354,0.51352503,120280.0,120270.0,0.19954974]
[1752813175555,0.48192503,120280.0,120270.0,0.19954974]
[1752813175694,0.47873496,120280.0,120270.0,0.19954974]
[1752813175896,0.47042117,120280.0,120270.0,0.19954974]
[1752813177207,0.46210745,120280.0,120270.0,0.20153974]
[1752813177443,0.45379394,120280.0,120270.0,0.20460974]
[1752813177636,0.46210752,120280.0,120270.0,0.20460974]
[1752813178384,0.47042131,120280.0,120270.0,0.20460974]
[1752813178637,0.16809413,120280.0,120270.0,0.20153974]
[1752813178870,0.47042131,120280.0,120270.0,0.20153974]
[1752813179105,0.47042124,120280.0,120270.0,0.20153974]
[1752813179573,0.47873503,120280.0,120270.0,0.20153974]
[1752813179816,0.47873558,120280.0,120270.0,0.19954974]
[1752813180052,0.46210793,120280.0,120270.0,0.19954974]
[1752813180516,0.43716718,120280.0,120270.0,0.20153974]
[1752813180750,0.43716718,120280.0,120270.0,0.21980974]
[1752813181221,0.43712718,120280.0,120270.0,0.21980974]
[1752813181419,0.30880718,120280.0,120270.0,0.21980974]
[1752813181686,0.43712718,120280.0,120270.0,0.21980974]
[1752813185011,0.44544049,120280.0,120270.0,0.21980974]
[1752813185249,0.43712718,120280.0,120270.0,0.21980974]
[1752813186260,0.44544049,120280.0,120270.0,0.21980974]
[1752813186732,0.1348,120280.0,120270.0,0.21980974]
[1752813186967,0.00648,120280.0,120270.0,0.21980974]
[1752813187176,0.1348,120280.0,120270.0,0.21980974]
[1752813191164,0.1328,120280.0,120270.0,0.21980974]
[1752813191402,0.1308,120280.0,120270.0,0.21980974]
[1752813191711,0.1328,120280.0,120270.0,0.21980974]
[1752813192174,0.14111331,120280.0,120270.0,0.21980974]
[1752813192377,0.1328,120280.0,120270.0,0.21980974]
[1752813192613,0.13072,120280.0,120270.0,0.25925158]
[1752813192826,0.13072,120280.0,120270.0,0.27445158]
[1752813193916,0.13072,120280.0,120270.0,0.23500974]
[1752813195631,0.0024,120280.0,120270.0,0.23500974]
[1752813195869,0.13068,120280.0,120270.0,0.23500974]
[1752813198282,0.0024,120280.0,120270.0,0.23500974]
[1752813198474,0.13068,120280.0,120270.0,0.23500974]
[1752813199932,0.12968,120280.0,120270.0,0.23500974]
[1752813200378,0.12868,120280.0,120270.0,0.23500974]
[1752813202971,0.12864,120280.0,120270.0,0.21980974]
[1752813204768,0.13695338,120280.0,120270.0,0.21980974]
[1752813205213,0.12864,120280.0,120270.0,0.21980974]
[1752813206030,0.0004,120280.0,120270.0,0.23490974]
[1752813206256,0.12864,120280.0,120270.0,0.23490974]
[1752813207540,0.13695331,120280.0,120270.0,0.43490974]
[1752813207711,0.00871331,120280.0,120270.0,0.43490974]
[1752813207957,0.14526676,120280.0,120270.0,0.41980974]
[1752813208183,0.13695331,120280.0,120270.0,0.41980974]
[1752813208417,0.12864,120280.0,120270.0,0.41980974]
[1752813208622,0.13695331,120280.0,120270.0,0.41980974]
[1752813209473,0.14526669,120280.0,120270.0,0.41980974]
[1752813209684,0.1535802,120280.0,120270.0,0.41980974]
[1752813209893,0.14526669,120280.0,120270.0,0.41980974]
[1752813210097,0.13695331,120280.0,120270.0,0.41980974]
[1752813210364,0.12864,120280.0,120270.0,0.41980974]
[1752813210812,0.0004,120280.0,120270.0,0.43600974]
[1752813211003,0.12864,120280.0,120270.0,0.43600974]
[1752813212970,0.13695338,120280.0,120270.0,0.41980974]
[1752813213205,0.12864,120280.0,120270.0,0.41980974]
[1752813216948,0.1286,120280.0,120270.0,0.41980974]
[1752813217148,0.1286,120280.0,120270.0,0.49365158]
[1752813221033,0.1286,120280.0,120270.0,0.41980974]
[1752813225050,0.0004,120280.0,120270.0,0.41980974]
[1752813225264,0.1286,120280.0,120270.0,0.41980974]
[1752813225952,0.1286,120280.0,120270.0,0.43520974]
[1752813226173,0.1286,120280.0,120270.0,0.41980974]
[1752813226357,0.0004,120280.0,120270.0,0.43580974]
[1752813226579,0.0004,120280.0,120270.0,0.8236472]
[1752813227018,0.0004,120280.0,120270.0,1.3281597]
[1752813228067,0.0004,120280.0,120270.0,0.98983986]
[1752813228404,0.0004,120280.0,120270.0,0.43680974]
[1752813228610,0.0004,120280.0,120270.0,0.42080974]
[1752813228826,0.0004,120280.0,120270.0,0.54896974]
[1752813229033,0.0004,120280.0,120270.0,0.54996974]
[1752813230064,0.0004,120280.0,120270.0,0.63572936]
[1752813230270,0.0004,120280.0,120270.0,0.54996974]
[1752813230673,0.0004,120280.0,120270.0,0.56606974]
[1752813231431,0.0004,120280.0,120270.0,0.86777413]
[1752813232294,0.0004,120280.0,120270.0,1.1268288]
[1752813232499,0.0004,120290.0,120280.0,0.82562842]
[1752813232719,0.00055013,120290.0,120280.0,0.61153431]
[1752813232924,0.00055013,120290.0,120280.0,0.74264431]
[1752813233342,1e-08,120290.0,120280.0,0.74264431]
[1752813233746,1e-08,120290.0,120280.0,0.74564431]
[1752813233920,1e-08,120290.0,120280.0,0.74964431]
[1752813234508,1e-08,120290.0,120280.0,0.75297331]
[1752813236726,1e-08,120290.0,120280.0,0.75293331]
[1752813236945,1e-08,120290.0,120280.0,0.62481331]
[1752813237155,1e-08,120290.0,120280.0,0.75293331]
[1752813238380,1e-08,120290.0,120280.0,0.76169897]
[1752813238590,1e-08,120290.0,120280.0,1.06340336]
[1752813239414,1e-08,120290.0,120280.0,0.9265177]
[1752813239626,1e-08,120290.0,120280.0,0.75293331]
[1752813240049,1e-08,120290.0,120280.0,0.62481331]
[1752813240254,1e-08,120290.0,120280.0,0.75293331]
[1752813240462,1e-08,120290.0,120280.0,0.45122892]
[1752813240677,1e-08,120290.0,120280.0,0.75293331]
[1752813241093,1e-08,120290.0,120280.0,1.06359761]
[1752813241523,1e-08,120290.0,120280.0,1.0546377]
[1752813241949,1e-08,120290.0,120280.0,0.75293331]
[1752813242836,1e-08,120290.0,120280.0,0.32310892]
[1752813243066,1e-08,120290.0,120280.0,0.75445331]
[1752813243288,1e-08,120290.0,120280.0,0.9265177]
[1752813243508,1e-08,120300.0,120290.0,0.22160373]
[1752813243722,1e-08,120300.0,120290.0,0.7405984]
[1752813243959,1e-08,120300.0,120290.0,0.7436284]
[1752813244807,1e-08,120300.0,120290.0,0.7685864]
[1752813245009,1e-08,120300.0,120290.0,0.7695464]
[1752813245215,1e-08,120300.0,120290.0,0.78508725]
[1752813246951,1e-08,120300.0,120290.0,0.78504725]
[1752813247204,1e-08,120300.0,120290.0,0.78508725]
[1752813248034,1e-08,120300.0,120290.0,0.6408264]
[1752813248288,1e-08,120300.0,120290.0,0.46884201]
[1752813248508,1e-08,120300.0,120290.0,0.7705464]
[1752813248718,1e-08,120300.0,120290.0,0.46884201]
[1752813248933,1e-08,120300.0,120290.0,0.7705464]
[1752813249116,1e-08,120300.0,120290.0,0.7706664]
[1752813249358,0.01771001,120300.0,120290.0,0.21816173]
[1752813249574,0.03391001,120300.0,120290.0,0.19320373]
[1752813249793,0.03391001,120300.0,120290.0,0.32316373]
[1752813250226,0.0683973,120300.0,120290.0,0.32526373]
[1752813250446,1e-08,120300.0,120290.0,0.62991812]
[1752813250879,1e-08,120300.0,120290.0,0.32821373]
[1752813251110,1e-08,120300.0,120290.0,0.32825373]
[1752813251945,1e-08,120300.0,120290.0,0.19825373]
[1752813252184,1e-08,120300.0,120290.0,0.39903639]
[1752813252412,0.41317375,120300.0,120290.0,0.19320373]
[1752813252635,0.94436152,120300.0,120290.0,0.18489098]
[1752813252849,1.03818435,120300.0,120290.0,0.19320387]
[1752813253054,1.02987229,120300.0,120290.0,0.18489098]
[1752813253267,0.47890462,120300.0,120290.0,0.19320373]
[1752813253498,0.78892135,120300.0,120290.0,0.19220373]
[1752813253714,0.47890462,120300.0,120290.0,0.19220373]
[1752813253926,0.78892135,120300.0,120290.0,0.19120373]
[1752813254133,0.78060874,120300.0,120290.0,0.19120373]
[1752813254555,0.77229661,120300.0,120290.0,0.19120373]
[1752813254735,0.7806086,120300.0,120290.0,0.19120373]
[1752813255716,0.78892073,120300.0,120290.0,0.19120373]
[1752813255912,0.47890421,120300.0,120290.0,0.19120373]
[1752813256119,0.46228029,120300.0,120290.0,0.19120373]
[1752813256950,0.47059222,120300.0,120290.0,0.19120373]
[1752813257158,0.46228029,120300.0,120290.0,0.19120373]
[1752813257359,0.47059222,120300.0,120290.0,0.19120373]
[1752813257569,0.46228029,120300.0,120290.0,0.19120373]
[1752813260315,0.86636829,120300.0,120290.0,0.19120373]
[1752813260940,0.77229661,120300.0,120290.0,0.19120373]
[1752813261369,0.37677001,120300.0,120290.0,0.19120373]
[1752813262001,0.50737001,120300.0,120290.0,0.19120373]
[1752813269450,0.37677001,120300.0,120290.0,0.19120373]
[1752813269672,0.50781001,120300.0,120290.0,0.19120373]
[1752813271186,0.34000001,120300.0,120290.0,0.24403365]
[1752813271408,1e-08,120300.0,120290.0,0.27788365]
[1752813271640,1e-08,120300.0,120290.0,0.71066804]
[1752813271853,1e-08,120300.0,120290.0,0.57958804]
[1752813272274,1e-08,120300.0,120290.0,0.71066804]
[1752813272707,1e-08,120300.0,120290.0,0.40896365]
[1752813272920,1e-08,120300.0,120290.0,0.71066804]
[1752813275121,1e-08,120300.0,120290.0,0.52877812]
[1752813275348,1e-08,120300.0,120290.0,0.34257373]
[1752813275760,1e-08,120300.0,120290.0,0.34253373]
[1752813275971,0.00197001,120300.0,120290.0,0.32713373]
[1752813276173,0.03397001,120300.0,120290.0,0.19120373]
[1752813276419,0.03721001,120300.0,120290.0,0.19120373]
[1752813276624,0.02061001,120300.0,120290.0,0.19120373]
[1752813277055,0.15149001,120300.0,120290.0,0.19120373]
[1752813277270,0.14825001,120300.0,120290.0,0.19120373]
[1752813278346,0.03721001,120300.0,120290.0,0.19120373]
[1752813278556,0.16809001,120300.0,120290.0,0.19120373]
[1752813279456,0.03721001,120300.0,120290.0,0.24170265]
[1752813279893,0.16477001,120300.0,120290.0,0.19120373]
[1752813281009,1e-08,120300.0,120290.0,0.21157373]
[1752813281230,0.13080001,120300.0,120290.0,0.21157373]
[1752813281670,0.13080001,120300.0,120290.0,0.19617373]
[1752813283906,1e-08,120300.0,120290.0,0.49787812]
[1752813284142,0.13064001,120300.0,120290.0,0.58256648]
[1752813284553,0.13060001,120300.0,120290.0,0.28086209]
[1752813284759,1e-08,120300.0,120290.0,0.19617373]
[1752813284965,0.13253001,120300.0,120290.0,0.19617373]
[1752813286342,0.14805001,120300.0,120290.0,0.19120373]
[1752813287018,0.03581001,120300.0,120290.0,0.19120373]
[1752813287232,0.16661001,120300.0,120290.0,0.19120373]
[1752813288087,0.03581001,120300.0,120290.0,0.16626485]
[1752813288298,0.0322,120280.0,120270.0,0.39123484]
[1752813288524,0.16502,120280.0,120270.0,0.39138497]
[1752813288964,0.13282,120280.0,120270.0,0.39345497]
[1752813289201,0.13282,120280.0,120270.0,0.39650497]
[1752813289584,0.13282,120280.0,120270.0,0.39750497]
[1752813290001,0.13282,120280.0,120270.0,0.39850497]
[1752813291822,0.41851468,120300.0,120280.0,0.18290551]
[1752813292030,0.45681029,120300.0,120290.0,0.19120373]
[1752813292258,0.37336001,120300.0,120290.0,0.19120373]
[1752813292480,0.13144001,120300.0,120290.0,0.21172373]
[1752813292694,0.13144001,120300.0,120290.0,0.55452104]
[1752813292898,0.13144001,120300.0,120290.0,0.25281665]
[1752813293073,0.13344001,120300.0,120290.0,0.21172373]
[1752813293315,0.13144001,120300.0,120290.0,0.21172373]
[1752813293727,0.13344001,120300.0,120290.0,0.21172373]
[1752813293947,0.13444001,120300.0,120290.0,0.21172373]
[1752813294578,0.13440001,120300.0,120290.0,0.21172373]
[1752813295202,0.00200001,120300.0,120290.0,0.21172373]
[1752813295474,0.00200001,120300.0,120290.0,0.22802373]
[1752813295719,0.00200001,120300.0,120290.0,0.31353401]
[1752813295720,0.00300001,120300.0,120290.0,0.31353401]
[1752813295976,0.00300001,120300.0,120290.0,0.7467184]